bitfinex-derivatives/quotes_SOLF0:USTF0_20250404
["timestamp","ask_amount","ask_price","bid_price","bid_amount"]
[1743762347827,0.05879012,116.32,116.29,0.06333866]
[1743762348028,0.05879012,116.32,116.19,329.8809]
[1743762348229,0.05879012,116.32,116.23,39.45338196]
[1743762348429,8.5995,116.3,116.26,8.602]
[1743762348627,55.78,116.38,116.27,39.45338196]
[1743762348829,8.5978,116.32,116.28,8.6003]
[1743762349029,8.5978,116.32,116.27,39.45338196]
[1743762349030,39.45338196,116.36,116.26,329.72]
[1743762349230,0.06401242,116.31,116.29,0.05614085]
[1743762349534,39.45338196,116.32,116.21,426.50938402]
[1743762349733,39.45338196,116.3,116.22,55.74]
[1743762350027,8.6029,116.25,116.22,55.74]
[1743762350231,4.6366,116.31,116.22,55.74]
[1743762350428,8.5996,116.3,116.26,8.6016]
[1743762350621,39.45338196,116.35,116.26,55.64]
[1743762350828,0.05774816,116.28,116.26,55.64]
[1743762351031,4.6366,116.34,116.26,55.64]
[1743762351331,0.05878993,116.28,116.27,39.45338196]
[1743762351531,4.6366,116.34,116.27,8.6013]
[1743762351833,4.6366,116.34,116.27,39.45338196]
[1743762352031,8.5977,116.32,116.27,39.45338196]
[1743762352527,4.4612,116.38,116.28,329.88]
[1743762352734,0.05557566,116.31,116.28,329.93739044]
[1743762353032,43.92478196,116.37,116.28,329.88]
[1743762353234,0.05856414,116.31,116.29,39.45338196]
[1743762353429,8.9665,116.37,116.3,55.64]
[1743762353624,8.5966,116.34,116.3,64.2386]
[1743762353927,8.9665,116.37,116.3,55.64]
[1743762354630,0.06426621,116.35,116.32,8.65622626]
[1743762354930,0.06426621,116.35,116.32,0.05882626]
[1743762355332,0.06426621,116.35,116.33,39.45338196]
[1743762355529,9.2916,116.41,116.34,55.4]
[1743762355828,4.5686,116.41,116.34,55.4]
[1743762356228,8.5973,116.33,116.3,64.0986]
[1743762356532,8.5973,116.33,116.28,369.33338196]
[1743762356728,39.45338196,116.39,116.28,377.93368196]
[1743762357031,0.05775948,116.33,116.28,329.88]
[1743762357431,8.65525948,116.33,116.32,0.06356158]
[1743762357631,0.05775948,116.33,116.28,385.2]
[1743762357829,0.05775948,116.33,116.31,0.06102414]
[1743762358634,0.05775948,116.33,116.32,8.5976]
[1743762359631,0.05775948,116.33,116.32,63.6776]
[1743762359833,0.05775948,116.33,116.32,55.08]
[1743762360233,8.6,116.29,116.19,17.2135]
[1743762360434,0.05775948,116.33,116.27,39.45338196]
[1743762360731,8.5965,116.34,116.3,8.5987]
[1743762360935,4.723,116.38,116.31,39.45338196]
[1743762361325,8.5958,116.35,116.29,95.13338196]
[1743762361529,0.06263555,116.36,116.33,0.05890248]
[1743762361732,8.5944,116.37,116.33,8.65540248]
[1743762361928,0.06448798,116.36,116.33,8.65540248]
[1743762362133,0.06448798,116.36,116.33,0.05890248]
[1743762362529,0.06448798,116.36,116.33,95.25228444]
[1743762362734,0.06448798,116.36,116.33,0.05890248]
[1743762363037,0.06448798,116.36,116.33,39.51228444]
[1743762363237,0.06448798,116.36,116.33,0.05890248]
[1743762363540,8.5961,116.34,116.33,0.05890248]
[1743762363740,0.06448798,116.36,116.27,95.29338196]
[1743762363934,8.5979,116.32,116.29,8.5997]
[1743762364336,43.87178196,116.35,116.27,55.84]
[1743762364635,39.45338196,116.33,116.22,39.45338196]
[1743762364941,8.5984,116.31,116.3,3.677e-05]
[1743762365131,4.3286,116.32,116.22,39.45338196]
[1743762365333,4.3286,116.32,116.23,39.45338196]
[1743762365633,8.5992,116.3,116.23,39.45338196]
[1743762365938,8.5988,116.31,116.28,8.6002]
[1743762366140,0.05921606,116.28,116.25,95.05245164]
[1743762366340,55.76,116.34,116.25,94.99338196]
[1743762366534,9.096e-05,116.28,116.27,39.45338196]
[1743762366739,4.4184,116.35,116.27,369.41338196]
[1743762366935,4.4184,116.35,116.27,329.96]
[1743762367238,43.87178196,116.35,116.25,55.54]
[1743762367739,43.87178196,116.35,116.26,55.48]
[1743762368038,0.05512613,116.31,116.29,0.06449702]
[1743762368238,8.5991,116.3,116.29,0.06449702]
[1743762368737,8.5991,116.3,116.29,9.702e-05]
[1743762369440,13.2588,116.3,116.29,9.702e-05]
[1743762369844,21.8588,116.3,116.29,9.702e-05]
[1743762370045,4.6597,116.3,116.21,329.94]
[1743762370241,39.45338196,116.27,116.18,55.14]
[1743762370440,4.6056,116.26,116.18,55.14]
[1743762371243,0.06470336,116.23,116.21,0.05822374]
[1743762371443,0.06470336,116.23,116.21,8.66352374]
[1743762371646,0.06470336,116.23,116.21,0.05822374]
[1743762372340,0.06470336,116.23,116.22,54.9]
[1743762372547,13.5996,116.3,116.22,54.9]
[1743762372748,8.6002,116.29,116.23,39.45338196]
[1743762373141,13.5996,116.3,116.23,39.45338196]
[1743762373446,39.45338196,116.35,116.25,39.45338196]
[1743762373645,0.06166844,116.28,116.25,0.05925749]
[1743762373843,4.468,116.34,116.26,54.76]
[1743762374043,0.06210087,116.28,116.26,54.76]
[1743762374245,4.468,116.34,116.26,54.76]
[1743762374443,0.06529202,116.28,116.27,8.6013]
[1743762374641,4.468,116.34,116.27,8.6013]
[1743762374841,0.05516556,116.29,116.27,8.6013]
[1743762375048,54.92,116.33,116.23,330.0]
[1743762375246,0.06363935,116.29,116.27,0.0558063]
[1743762376040,0.06363935,116.29,116.27,48.10918826]
[1743762376244,4.6181,116.36,116.27,39.50918826]
[1743762376445,4.6181,116.36,116.27,39.45338196]
[1743762377244,0.06063549,116.33,116.3,0.06237252]
[1743762377642,0.06063549,116.33,116.3,8.66097252]
[1743762377844,0.06063549,116.33,116.3,0.06237252]
[1743762378054,0.06063549,116.33,116.3,54.94237252]
[1743762378449,4.3168,116.39,116.31,39.45338196]
[1743762378655,4.3168,116.39,116.3,384.92]
[1743762378845,39.45338196,116.37,116.27,94.27338196]
[1743762379050,39.45338196,116.37,116.27,54.82]
[1743762379253,39.45338196,116.35,116.27,63.4213]
[1743762379452,9.0112,116.34,116.27,54.82]
[1743762379754,9.0112,116.34,116.3,0.05578256]
[1743762379755,0.05902199,116.32,116.3,0.05578256]
[1743762380055,0.05902199,116.32,116.31,55.02]
[1743762380251,43.77018196,116.39,116.31,8.5983]
[1743762380452,4.3168,116.39,116.29,39.45338196]
[1743762380655,43.77018196,116.39,116.29,39.45338196]
[1743762381054,8.5981,116.32,116.28,55.06]
[1743762381249,94.47338196,116.37,116.28,55.06]
[1743762381751,0.05505238,116.34,116.31,0.05540602]
[1743762382249,4.65995238,116.34,116.31,0.05540602]
[1743762382457,94.41338196,116.33,116.24,8.6034]
[1743762382654,98.78528196,116.33,116.23,54.96]
[1743762382854,4.6108,116.32,116.23,8.6037]
[1743762383157,8.6019,116.27,116.22,39.45338196]
[1743762383349,94.35338196,116.29,116.22,1.7208742]
[1743762383557,0.05620791,116.26,116.23,0.06428485]
[1743762383952,4.42810791,116.26,116.23,0.06428485]
[1743762384454,4.42810791,116.26,116.22,1.7208742]
[1743762384650,4.4159,116.25,116.22,1.7208742]
[1743762384959,8.6043,116.23,116.22,1.7208742]
[1743762385257,54.9,116.29,116.22,1.7208742]
[1743762385258,39.45338196,116.3,116.22,1.7208742]
[1743762385559,0.06195109,116.27,116.25,0.06346222]
[1743762386556,8.66355109,116.27,116.25,0.06346222]
[1743762386858,0.06195109,116.27,116.25,0.06346222]
[1743762387054,8.602,116.26,116.25,0.06346222]
[1743762387556,0.06195109,116.27,116.25,0.06346222]
[1743762388155,8.66365109,116.27,116.25,0.06346222]
[1743762388350,0.06195109,116.27,116.25,0.06346222]
[1743762388555,0.06195109,116.27,116.25,8.66586222]
[1743762388757,0.06195109,116.27,116.25,0.06346222]
[1743762388957,0.06195109,116.27,116.25,8.66626222]
[1743762389160,0.06195109,116.27,116.25,0.06346222]
[1743762390453,0.06195109,116.27,116.26,54.52]
[1743762390755,0.06195109,116.27,116.25,0.06346222]
[1743762391159,0.06195109,116.27,116.25,8.66586222]
[1743762391558,0.06195109,116.27,116.25,0.06346222]
[1743762392158,0.06195109,116.27,116.26,8.602]
[1743762392461,0.06195109,116.27,116.25,0.06346222]
[1743762392858,0.06195109,116.27,116.26,8.602]
[1743762393562,0.06195109,116.27,116.26,48.05538196]
[1743762394064,0.06195109,116.27,116.25,8.66606222]
[1743762394268,0.06195109,116.27,116.25,0.06346222]
[1743762394561,0.06195109,116.27,116.26,8.602]
[1743762395163,0.06195109,116.27,116.25,54.26346222]
[1743762395358,0.06195109,116.27,116.25,0.06346222]
[1743762395756,0.06195109,116.27,116.22,8.6049]
[1743762395958,9.25815109,116.27,116.18,93.63338196]
[1743762396157,8.6024,116.26,116.23,8.6041]
[1743762396358,4.5278,116.27,116.22,54.1]
[1743762396558,54.14,116.31,116.22,54.1]
[1743762396755,39.45338196,116.26,116.17,330.08]
[1743762396956,39.45338196,116.24,116.15,291.5281238]
[1743762397163,39.45338196,116.24,116.12,17.224]
[1743762397164,8.6067,116.2,116.17,8.6082]
[1743762397358,9.0439,116.25,116.17,39.45338196]
[1743762397760,39.45338196,116.24,116.12,621.6081238]
[1743762397966,9.0439,116.25,116.13,39.45338196]
[1743762398164,0.06131098,116.19,116.17,0.05520588]
[1743762398365,0.06131098,116.19,116.18,8.608]
[1743762398666,0.05650754,116.2,116.17,54.42132515]
[1743762398963,0.05650754,116.2,116.17,0.06132515]
[1743762399760,8.608,116.18,116.17,0.06132515]
[1743762399965,0.05650754,116.2,116.17,0.06132515]
[1743762400762,0.05650754,116.2,116.17,39.51470711]
[1743762400960,0.05650754,116.2,116.17,0.06132515]
[1743762401365,0.05650754,116.2,116.18,8.6075]
[1743762401562,0.05650754,116.2,116.17,0.06132515]
[1743762401766,0.05650754,116.2,116.17,39.51470711]
[1743762402269,0.05650754,116.2,116.19,39.45338196]
[1743762402565,0.05650754,116.2,116.19,62.9072]
[1743762402868,9.0439,116.25,116.19,54.3]
[1743762403261,17.1949,116.33,116.19,54.3]
[1743762403262,39.45338196,116.3,116.19,384.48]
[1743762403465,8.601,116.28,116.25,8.6024]
[1743762403760,13.1497,116.3,116.23,54.24]
[1743762404068,8.65801687,116.28,116.25,8.66153162]
[1743762404568,0.05681687,116.28,116.25,0.05903162]
[1743762405163,8.6017,116.27,116.25,0.05903162]
[1743762405668,8.65771687,116.28,116.25,8.66143162]
[1743762406163,0.05681687,116.28,116.25,0.05903162]
[1743762406667,8.602,116.26,116.25,0.05903162]
[1743762407866,8.602,116.26,116.23,54.24]
[1743762407867,39.51019883,116.28,116.23,54.24]
[1743762408068,39.45338196,116.28,116.2,53.56]
[1743762408666,39.45338196,116.28,116.19,330.18]
[1743762408963,8.6036,116.24,116.22,0.06207463]
[1743762409270,0.05464208,116.25,116.22,0.06207463]
[1743762409472,0.05464208,116.25,116.23,8.6038]
[1743762409765,0.05464208,116.25,116.22,0.06207463]
[1743762409969,8.65774208,116.25,116.22,8.66677463]
[1743762410471,0.05464208,116.25,116.22,0.06207463]
[1743762410670,0.05464208,116.25,116.24,8.6035]
[1743762410862,0.05464208,116.25,116.24,61.8635]
[1743762411568,0.05464208,116.25,116.24,53.26]
[1743762412172,0.05464208,116.25,116.24,61.8635]
[1743762413568,39.45338196,116.37,116.24,101.31338196]
[1743762413775,13.3683,116.37,116.29,39.45338196]
[1743762413968,13.3683,116.37,116.34,8.5957]
[1743762414169,13.3683,116.37,116.3,383.12]
[1743762414571,0.05831141,116.35,116.32,0.05728887]
[1743762414970,8.5969,116.33,116.32,0.05728887]
[1743762415274,0.05831141,116.35,116.32,0.05728887]
[1743762415577,39.51169337,116.35,116.25,383.12]
[1743762415775,39.45338196,116.35,116.25,383.12]
[1743762416075,39.45338196,116.35,116.26,39.45338196]
[1743762416470,8.598,116.32,116.26,39.45338196]
[1743762416678,8.65608381,116.32,116.29,0.0640088]
[1743762416871,0.05808381,116.32,116.29,0.0640088]
[1743762417073,39.51146577,116.32,116.25,330.1]
[1743762417270,39.45338196,116.32,116.25,330.1]
[1743762417478,39.45338196,116.3,116.25,330.1]
[1743762417776,9.1657,116.29,116.22,8.6046]
[1743762418167,8.6028,116.25,116.22,8.6046]
[1743762418382,8.6028,116.25,116.24,0.05506458]
[1743762418571,8.66349562,116.25,116.24,0.05506458]
[1743762418876,0.06069562,116.25,116.24,0.05506458]
[1743762419382,0.06069562,116.25,116.24,8.65856458]
[1743762421071,0.06069562,116.25,116.24,61.09856458]
[1743762421276,9.562e-05,116.25,116.24,61.09856458]
[1743762422078,9.2382,116.33,116.24,61.09506458]
[1743762422376,4.4837,116.37,116.27,39.45338196]
[1743762422679,9.2514,116.39,116.31,39.45338196]
[1743762422873,9.2514,116.39,116.29,39.45338196]
[1743762422874,9.2514,116.39,116.33,39.45338196]
[1743762423079,4.4837,116.41,116.35,39.45338196]
[1743762423381,0.05732306,116.37,116.36,52.26]
[1743762423575,0.05732306,116.37,116.36,60.8544]
[1743762423779,9.2514,116.43,116.36,52.26]
[1743762424081,8.5928,116.39,116.36,52.26]
[1743762424280,0.05556935,116.41,116.38,0.05668264]
[1743762424482,39.45338196,116.42,116.35,330.12]
[1743762424777,41.17129984,116.42,116.35,330.12]
[1743762425581,0.05971076,116.4,116.37,0.06602194]
[1743762426984,8.65191076,116.4,116.37,0.06602194]
[1743762427282,0.05971076,116.4,116.37,0.06602194]
[1743762427483,8.5924,116.39,116.37,0.06602194]
[1743762427680,0.05971076,116.4,116.37,0.06602194]
[1743762428473,0.05971076,116.4,116.38,8.5927]
[1743762428679,0.05971076,116.4,116.37,0.06602194]
[1743762430082,0.05971076,116.4,116.38,8.5926]
[1743762430483,0.05971076,116.4,116.37,0.06602194]
[1743762430884,0.05971076,116.4,116.37,8.65922194]
[1743762431087,0.05971076,116.4,116.37,0.06602194]
[1743762432890,0.05971076,116.4,116.37,48.1130039]
[1743762433083,0.05971076,116.4,116.37,0.06602194]
[1743762433586,0.05971076,116.4,116.39,8.5924]
[1743762434188,0.05971076,116.4,116.37,8.65972194]
[1743762434381,0.05971076,116.4,116.37,0.06602194]
[1743762434580,8.5929,116.39,116.37,0.06602194]
[1743762434780,0.05971076,116.4,116.37,0.06602194]
[1743762435981,0.05971076,116.4,116.35,330.12]
[1743762436187,8.5947,116.36,116.33,50.74]
[1743762436485,4.4329,116.39,116.33,50.74]
[1743762436791,4.4329,116.39,116.33,8.5969]
[1743762436987,4.4329,116.39,116.32,50.78]
[1743762437181,0.06104501,116.37,116.35,0.038868]
[1743762437688,0.06104501,116.37,116.36,50.66]
[1743762437890,0.06104501,116.37,116.36,59.2547]
[1743762438588,0.06104501,116.37,116.36,50.66]
[1743762439182,4.4837,116.44,116.36,50.66]
[1743762439386,8.5906,116.42,116.36,50.66]
[1743762439683,4.4837,116.44,116.37,369.25338196]
[1743762440390,0.0632123,116.42,116.39,0.05853123]
[1743762440691,0.0632123,116.42,116.39,8.65043123]
[1743762440887,0.0632123,116.42,116.39,0.05853123]
[1743762441093,0.0632123,116.42,116.4,50.26]
[1743762441293,4.5672,116.46,116.4,50.26]
[1743762441294,8.5874,116.46,116.4,50.26]
[1743762441495,4.3071,116.47,116.4,50.26]
[1743762441695,4.3071,116.47,116.43,8.5891]
[1743762441890,4.3071,116.47,116.4,89.71338196]
[1743762441891,12.894,116.47,116.4,89.71338196]
[1743762442095,4.3071,116.47,116.4,89.71338196]
[1743762442497,0.06397472,116.45,116.42,0.06070369]
[1743762442890,0.06397472,116.45,116.44,8.5888]
[1743762443094,0.06397472,116.45,116.44,58.5488]
[1743762443498,0.06397472,116.45,116.44,49.96]
[1743762444493,0.06397472,116.45,116.44,58.5488]
[1743762445201,8.6235,116.52,116.44,379.7]
[1743762445394,17.2068,116.52,116.44,379.7]
[1743762445595,8.6235,116.52,116.49,8.5846]
[1743762445795,8.6235,116.52,116.48,49.64]
[1743762446299,0.0632592,116.51,116.49,0.0640269]
[1743762446500,75.2295,116.61,116.48,49.64]
[1743762446800,0.05876958,116.51,116.49,0.05982951]
[1743762447097,39.51240064,116.56,116.53,0.05482092]
[1743762447302,0.06487152,116.51,116.49,0.06266159]
[1743762447501,39.45338196,116.56,116.48,49.64]
[1743762447697,0.05920356,116.51,116.49,0.0658705]
[1743762447896,8.837,116.57,116.48,49.64]
[1743762448200,0.06293577,116.51,116.48,49.64]
[1743762448405,0.05614248,116.54,116.51,0.05854971]
[1743762448593,8.5827,116.53,116.48,49.64]
[1743762448795,8.5827,116.53,116.51,0.05688394]
[1743762449094,8.5822,116.53,116.51,0.05688394]
[1743762449400,0.06130887,116.53,116.51,0.05688394]
[1743762449797,0.06130887,116.53,116.51,8.64008394]
[1743762449995,0.06130887,116.53,116.51,0.05688394]
[1743762450399,0.06130887,116.53,116.52,57.6829]
[1743762451502,8.87e-06,116.53,116.52,57.6829]
[1743762452001,4.5783,116.6,116.57,8.5791]
[1743762452301,9.0326,116.61,116.56,48.82]
[1743762452598,39.45338196,116.58,116.52,48.78]
[1743762452801,4.3262,116.57,116.52,48.78]
[1743762453002,4.3262,116.57,116.51,329.62]
[1743762453195,0.05899143,116.55,116.53,0.05570957]
[1743762453596,8.5814,116.54,116.53,0.05570957]
[1743762453796,0.05899143,116.55,116.53,0.05570957]
[1743762453996,0.05899143,116.55,116.53,48.77570957]
[1743762454199,0.05899143,116.55,116.54,8.5814]
[1743762454399,0.05899143,116.55,116.53,48.77570957]
[1743762454598,0.05899143,116.55,116.54,8.5814]
[1743762455004,0.05899143,116.55,116.53,48.77570957]
[1743762455406,0.05899143,116.55,116.53,0.05570957]
[1743762458508,0.05899143,116.55,116.53,8.63740957]
[1743762459404,0.05899143,116.55,116.54,8.5814]
[1743762459708,0.05899143,116.55,116.54,56.6614]
[1743762460107,0.05899143,116.55,116.54,48.08]
[1743762460808,0.05899143,116.55,116.54,56.6614]
[1743762461006,9.0326,116.61,116.54,87.53338196]
[1743762461204,48.48598196,116.61,116.54,48.08]
[1743762461403,39.45338196,116.59,116.48,368.85338196]
[1743762461606,8.5817,116.54,116.48,329.4]
[1743762461905,4.6739,116.58,116.49,47.98]
[1743762462109,0.05514313,116.54,116.52,0.0556112]
[1743762462809,0.05514313,116.54,116.52,8.6384112]
[1743762463010,0.05514313,116.54,116.52,0.0556112]
[1743762463210,8.5821,116.53,116.52,0.0556112]
[1743762463417,0.05514313,116.54,116.52,0.0556112]
[1743762463808,8.5821,116.53,116.52,0.0556112]
[1743762464311,0.05514313,116.54,116.48,329.4]
[1743762464612,39.45338196,116.57,116.41,47.72]
[1743762464613,39.45338196,116.51,116.41,47.72]
[1743762464807,4.6589,116.5,116.42,1.71791788]
[1743762465410,0.06417907,116.47,116.45,0.06152886]
[1743762465710,0.06417907,116.47,116.4,47.66]
[1743762465911,0.06417907,116.47,116.42,39.45338196]
[1743762466102,4.6589,116.5,116.42,39.45338196]
[1743762466310,4.6589,116.5,116.4,87.11338196]
[1743762466501,4.6589,116.5,116.4,47.66]
[1743762466703,0.05793867,116.46,116.44,0.05638542]
[1743762467013,0.05793867,116.46,116.39,329.38]
[1743762467014,8.5906,116.42,116.39,329.38]
[1743762467209,4.4518,116.45,116.38,47.52]
[1743762467616,8.591,116.41,116.38,47.52]
[1743762467811,44.19398196,116.44,116.34,39.45338196]
[1743762468016,0.05501908,116.41,116.38,0.06138559]
[1743762469917,0.05501908,116.41,116.38,8.65418559]
[1743762470307,0.05501908,116.41,116.38,0.06138559]
[1743762470715,0.05501908,116.41,116.38,39.51476755]
[1743762471209,0.05501908,116.41,116.4,48.04508196]
[1743762471417,4.3664,116.5,116.4,369.01338196]
[1743762471611,4.6769,116.49,116.42,39.45338196]
[1743762471812,8.5862,116.48,116.42,39.45338196]
[1743762472114,4.6769,116.49,116.44,39.45338196]
[1743762472308,4.6769,116.49,116.45,46.96]
[1743762472509,0.05876987,116.48,116.45,47.02153831]
[1743762473208,0.05876987,116.48,116.45,0.06153831]
[1743762473415,8.587,116.47,116.45,0.06153831]
[1743762473711,0.05876987,116.48,116.45,0.06153831]
[1743762474316,0.05876987,116.48,116.42,46.86]
[1743762475413,0.05876987,116.48,116.42,55.45]
[1743762475718,8.588,116.45,116.44,0.06269914]
[1743762476013,4.6769,116.49,116.44,0.06269914]
[1743762476213,0.0620068,116.46,116.44,0.06269914]
[1743762476815,0.0620068,116.46,116.4,329.56]
[1743762477115,0.0620068,116.46,116.4,338.1514]
[1743762477318,0.0620068,116.46,116.4,329.56]
[1743762477516,39.51538876,116.46,116.36,46.58]
[1743762477717,39.45338196,116.46,116.38,8.5928]
[1743762477918,0.05880151,116.42,116.4,0.05814556]
[1743762478117,8.59,116.43,116.37,39.45338196]
[1743762478426,0.05965794,116.42,116.4,0.05808453]
[1743762478620,8.5924,116.4,116.35,329.58]
[1743762478820,85.93338196,116.44,116.35,329.58]
[1743762479021,4.3716,116.43,116.35,329.58]
[1743762479223,8.5913,116.41,116.38,8.5931]
[1743762479522,4.3716,116.43,116.35,329.58]
[1743762479720,0.06415049,116.41,116.38,0.04657195]
[1743762480720,0.06415049,116.41,116.4,39.45338196]
[1743762480912,0.06415049,116.41,116.4,48.04508196]
[1743762481115,4.5826,116.48,116.4,39.45338196]
[1743762481315,4.5826,116.48,116.41,46.3]
[1743762481725,8.5873,116.46,116.41,46.3]
[1743762482117,4.6395,116.49,116.42,329.64]
[1743762482322,0.05681981,116.45,116.44,39.45338196]
[1743762482526,4.6395,116.49,116.44,39.45338196]
[1743762482720,0.05896915,116.46,116.45,46.26]
[1743762483321,44.93242081,116.62,116.45,54.84]
[1743762483522,4.7191,116.58,116.48,39.45338196]
[1743762483724,39.45338196,116.56,116.49,46.14]
[1743762483923,6.01370171,116.55,116.49,46.14]
[1743762484126,1.71614896,116.54,116.49,46.14]
[1743762484329,8.5843,116.5,116.49,46.14]
[1743762484623,0.05630587,116.53,116.44,39.45338196]
[1743762484820,0.05630587,116.53,116.42,329.64]
[1743762484821,39.45338196,116.52,116.48,0.06312838]
[1743762485021,0.06235036,116.5,116.43,85.61338196]
[1743762485423,4.7191,116.51,116.43,85.61338196]
[1743762485821,4.7191,116.51,116.43,46.16]
[1743762486129,0.0607594,116.48,116.46,0.06426045]
[1743762486330,46.2007594,116.48,116.4,46.16]
[1743762486524,8.5896,116.43,116.4,46.16]
[1743762486828,46.14,116.48,116.4,46.16]
[1743762487026,8.5899,116.43,116.38,46.06]
[1743762487321,46.14,116.48,116.38,46.06]
[1743762487523,0.05452572,116.42,116.39,0.04230276]
[1743762487722,0.05452572,116.42,116.38,8.5928]
[1743762487926,39.45338196,116.47,116.39,0.04230276]
[1743762488227,0.06001129,116.42,116.37,329.56]
[1743762488618,0.06001129,116.42,116.38,0.04230276]
[1743762489716,0.06001129,116.42,116.38,8.63510276]
[1743762489916,0.06001129,116.42,116.38,0.04230276]
[1743762490319,8.5924,116.39,116.38,0.04230276]
[1743762490720,8.5945,116.37,116.32,39.45338196]
[1743762490924,0.05791668,116.4,116.34,8.596]
[1743762491126,39.45338196,116.41,116.32,39.45338196]
[1743762491323,39.45338196,116.41,116.32,48.05068196]
[1743762491518,4.4063,116.4,116.31,45.8]
[1743762491724,8.5952,116.36,116.31,45.8]
[1743762491920,8.5952,116.36,116.33,8.5967]
[1743762492126,4.4063,116.4,116.31,45.8]
[1743762492324,8.66134913,116.36,116.31,45.8]
[1743762492624,8.66134913,116.36,116.33,8.5968]
[1743762492928,8.5954,116.35,116.32,8.5972]
[1743762493319,0.06614913,116.36,116.31,45.56]
[1743762493525,8.5958,116.35,116.3,369.05338196]
[1743762493831,0.05806632,116.35,116.3,375.12]
[1743762494122,8.5983,116.32,116.28,8.6003]
[1743762494428,9.3386,116.34,116.26,84.89338196]
[1743762494728,8.66288317,116.31,116.26,84.89338196]
[1743762495025,8.5995,116.3,116.26,93.49508196]
[1743762495230,8.5995,116.3,116.26,48.05508196]
[1743762495729,8.6002,116.29,116.25,383.6624]
[1743762496028,8.6002,116.29,116.25,329.7]
[1743762496225,4.6299,116.33,116.22,39.45338196]
[1743762496226,0.05531206,116.28,116.22,39.45338196]
[1743762496428,84.69338196,116.31,116.21,45.24]
[1743762496627,8.6034,116.25,116.21,8.6056]
[1743762496833,0.05474581,116.26,116.2,329.7]
[1743762497030,9.25544581,116.26,116.2,329.7]
[1743762497230,9.2007,116.26,116.2,329.7]
[1743762497529,0.05936835,116.24,116.18,45.14]
[1743762498031,0.05936835,116.24,116.18,84.59338196]
[1743762498230,0.05936835,116.24,116.21,8.6052]
[1743762498429,0.05936835,116.24,116.22,45.0]
[1743762498629,0.05936835,116.24,116.22,84.45338196]
[1743762498829,4.3491,116.28,116.22,84.45338196]
[1743762499029,0.05759741,116.24,116.22,84.45338196]
[1743762499531,0.05759741,116.24,116.23,8.6043]
[1743762500031,8.6002,116.29,116.26,8.602]
[1743762500228,4.7178,116.31,116.24,39.45338196]
[1743762501235,0.06094061,116.29,116.26,0.05682084]
[1743762501532,0.06094061,116.29,116.26,44.77682084]
[1743762501832,0.06094061,116.29,116.28,8.6006]
[1743762502426,0.06094061,116.29,116.27,8.6011]
[1743762502632,0.06094061,116.29,116.26,0.05682084]
[1743762502934,8.6009,116.28,116.26,0.05682084]
[1743762503135,0.06094061,116.29,116.26,0.05682084]
[1743762503932,8.6009,116.28,116.26,0.05682084]
[1743762504137,0.06094061,116.29,116.26,0.05682084]
[1743762505035,0.06094061,116.29,116.2,44.58]
[1743762505233,39.45338196,116.3,116.21,44.56]
[1743762505734,582.58,116.31,116.18,41.46288196]
[1743762505936,39.45338196,116.28,116.18,83.95338196]
[1743762506137,8.6033,116.25,116.21,8.6053]
[1743762506338,0.05419052,116.24,116.18,83.95338196]
[1743762506534,0.05419052,116.24,116.21,8.6053]
[1743762506731,0.05419052,116.24,116.18,83.95338196]
[1743762506937,0.05419052,116.24,116.2,39.45338196]
[1743762507241,0.05419052,116.24,116.23,8.6043]
[1743762507437,0.05419052,116.24,116.23,53.0443]
[1743762507644,8.5989,116.31,116.23,53.04]
[1743762507838,4.3811,116.32,116.24,39.45338196]
[1743762508033,4.3811,116.32,116.24,369.49338196]
[1743762508437,8.5994,116.3,116.26,8.6018]
[1743762508741,0.06015542,116.29,116.27,0.05496709]
[1743762509333,8.66035542,116.29,116.27,0.05496709]
[1743762509537,0.06015542,116.29,116.27,0.05496709]
[1743762509743,0.06015542,116.29,116.27,44.23496709]
[1743762510042,0.06015542,116.29,116.28,8.6006]
[1743762510343,8.7032,116.35,116.27,44.23496709]
[1743762510536,8.5976,116.32,116.29,8.5994]
[1743762511141,8.5998,116.29,116.27,44.18]
[1743762511442,0.06265224,116.29,116.27,0.06286614]
[1743762512032,0.06265224,116.29,116.28,44.02]
[1743762512235,8.7032,116.35,116.28,44.02]
[1743762512743,4.7406,116.36,116.3,39.45338196]